fUST/lending_fUST_20250605
["ID","MTS","AMOUNT","RATE_DAILY","PERIOD"]
[364343732,1749073854327,-164.677645,0.00024198,7]
[364343734,1749073854336,-164.677645,0.00024198,7]
[364343736,1749073854346,-164.677645,0.00024198,7]
[364343738,1749073854355,-164.677645,0.00024198,7]
[364343740,1749073854365,-164.677645,0.00024198,7]
[364343742,1749073854374,-164.677645,0.00024198,7]
[364343744,1749073854384,-164.677645,0.00024198,7]
[364343746,1749073854394,-164.677645,0.00024198,7]
[364343748,1749073854403,-164.677641,0.00024198,7]
[364343750,1749073854413,-151.0,0.00024198,7]
[364343752,1749073854423,-151.0,0.00024198,7]
[364343754,1749073854432,-436.864525,0.00024198,7]
[364343756,1749073854442,-436.864525,0.00024198,7]
[364343758,1749073854451,-436.864525,0.00024198,7]
[364343760,1749073854460,-436.864525,0.00024198,7]
[364343762,1749073854470,-436.864525,0.00024198,7]
[364343764,1749073854479,-436.864525,0.00024198,7]
[364343766,1749073854489,-436.864525,0.00024198,7]
[364343768,1749073854498,-436.864525,0.00024198,7]
[364343770,1749073854508,-436.864525,0.00024198,7]
[364343772,1749073854518,-436.864525,0.00024198,7]
[364343774,1749073854527,-436.864525,0.00024198,7]
[364343776,1749073854537,-436.864525,0.00024198,7]
[364343778,1749073854547,-436.864525,0.00024198,7]
[364343780,1749073854557,-436.864525,0.00024198,7]
[364343782,1749073854566,-436.864525,0.00024198,7]
[364343784,1749073854576,-436.864525,0.00024198,7]
[364343786,1749073854586,-436.864525,0.00024198,7]
[364343788,1749073854596,-436.864525,0.00024198,7]
[364343790,1749073854606,-436.864525,0.00024198,7]
[364343792,1749073854615,-436.864529,0.00024198,7]
[364343794,1749073854627,-151.0,0.00024198,7]
[364343796,1749073854636,-151.0,0.00024198,7]
[364343797,1749073854646,-151.0,0.00024198,7]
[364343798,1749073854656,-151.0,0.00024198,7]
[364343799,1749073854666,-151.0,0.00024198,7]
[364343800,1749073854675,-151.0,0.00024198,7]
[364343801,1749073854686,-151.0,0.00024198,7]
[364343802,1749073854695,-151.0,0.00024198,7]
[364343803,1749073854705,-151.0,0.00024198,7]
[364343804,1749073854715,-151.0,0.00024198,7]
[364343805,1749073854727,-151.0,0.00024198,7]
[364343806,1749073854736,-151.0,0.00024198,7]
[364343807,1749073854746,-151.0,0.00024198,7]
[364343808,1749073854755,-151.0,0.00024198,7]
[364343810,1749073854765,-151.0,0.00024198,7]
[364343812,1749073854775,-151.0,0.00024198,7]
[364343814,1749073854784,-161.06113,0.00024198,7]
[364343816,1749073854793,-1607.325022,0.00024198,2]
[364343818,1749073854803,-1607.325022,0.00024198,2]
[364343820,1749073854813,-2000.0,0.000242,2]
[364343822,1749073854823,-2000.0,0.000242,2]
[364343824,1749073854832,-160.0,0.000242,10]
[364343826,1749073854842,-212.90465545,0.000242,7]
[364343828,1749073854851,-212.90465545,0.000242,10]
[364343830,1749073854861,-7555.24895389,0.000242,10]
[364343832,1749073854870,-1987.206,0.000242,2]
[364343834,1749073854880,-160.0,0.0002421,10]
[364343836,1749073854889,-151.0,0.00024214,7]
[364343838,1749073854899,-151.0,0.00024214,7]
[364343840,1749073854908,-151.0,0.00024214,7]
[364343842,1749073854919,-151.0,0.00024214,7]
[364343843,1749073854929,-151.0,0.00024214,7]
[364343845,1749073854939,-151.0,0.00024214,7]
[364343848,1749073854948,-181.017071,0.00024214,7]
[364343850,1749073854958,-151.0,0.00024214,7]
[364343859,1749073855038,-151.0,0.00024214,7]
[364343861,1749073855049,-151.0,0.00024214,7]
[364343863,1749073855059,-151.0,0.00024214,7]
[364343865,1749073855068,-151.0,0.00024214,7]
[364343867,1749073855077,-151.0,0.00024214,7]
[364343869,1749073855088,-151.0,0.00024214,7]
[364343871,1749073855098,-151.0,0.00024214,7]
[364343873,1749073855107,-151.0,0.00024214,7]
[364343875,1749073855116,-151.0,0.00024214,7]
[364343877,1749073855125,-151.0,0.00024214,7]
[364343879,1749073855135,-151.0,0.00024214,7]
[364343881,1749073855144,-151.0,0.00024214,7]
[364343883,1749073855154,-166.548422,0.00024214,7]
[364343885,1749073855164,-1041.972702,0.00024214,7]
[364343887,1749073855174,-1041.972702,0.00024214,7]
[364343889,1749073855183,-1041.972702,0.00024214,7]
[364343891,1749073855192,-1041.972702,0.00024214,7]
[364343893,1749073855201,-1041.972702,0.00024214,7]
[364343895,1749073855211,-1041.972702,0.00024214,7]
[364343897,1749073855220,-1041.972702,0.00024214,7]
[364343899,1749073855229,-1041.972702,0.00024214,7]
[364343901,1749073855239,-1041.972702,0.00024214,7]
[364343903,1749073855248,-1041.972702,0.00024214,7]
[364343905,1749073855258,-1041.972702,0.00024214,7]
[364343907,1749073855267,-1041.972702,0.00024214,7]
[364343909,1749073855277,-1041.972702,0.00024214,7]
[364343910,1749073855286,-1041.972702,0.00024214,7]
[364343912,1749073855296,-1041.972702,0.00024214,7]
[364343914,1749073855305,-1041.972702,0.00024214,7]
[364343917,1749073855315,-1041.972702,0.00024214,7]
[364343919,1749073855325,-1041.972702,0.00024214,7]
[364343920,1749073855335,-1041.972702,0.00024214,7]
[364343922,1749073855345,-1041.972697,0.00024214,7]
[364343924,1749073855354,-151.0,0.00024214,7]
[364343926,1749073855364,-151.0,0.00024214,7]
[364343928,1749073855374,-151.0,0.00024214,7]
[364343930,1749073855383,-151.0,0.00024214,7]
[364343932,1749073855393,-151.0,0.00024214,7]
[364343934,1749073855402,-151.0,0.00024214,7]
[364343936,1749073855411,-151.0,0.00024214,7]
[364343938,1749073855420,-151.0,0.00024214,7]
[364343940,1749073855429,-151.0,0.00024214,7]
[364343942,1749073855439,-151.0,0.00024214,7]
[364343944,1749073855449,-253.337168,0.00024214,7]
[364343946,1749073855459,-151.0,0.00024214,7]
[364343948,1749073855468,-151.0,0.00024214,7]
[364343950,1749073855479,-151.0,0.00024214,7]
[364343952,1749073855489,-151.0,0.00024214,7]
[364343954,1749073855499,-151.0,0.00024214,7]
[364343956,1749073855508,-151.0,0.00024214,7]
[364343958,1749073855517,-151.0,0.00024214,7]
[364343960,1749073855528,-151.0,0.00024214,7]
[364343962,1749073855537,-240.809936,0.00024214,7]
[364343964,1749073855547,-151.0,0.00024214,7]
[364343966,1749073855556,-151.0,0.00024214,7]
[364343968,1749073855565,-151.0,0.00024214,7]
[364343970,1749073855575,-151.0,0.00024214,7]
[364343972,1749073855585,-151.0,0.00024214,7]
[364343974,1749073855595,-151.0,0.00024214,7]
[364343976,1749073855605,-151.0,0.00024214,7]
[364343978,1749073855614,-151.0,0.00024214,7]
[364343980,1749073855623,-151.0,0.00024214,7]
[364343982,1749073855634,-151.0,0.00024214,7]
[364343984,1749073855643,-1607.325022,0.00024214,2]
[364343986,1749073855652,-1607.325022,0.00024214,2]
[364343988,1749073855662,-1607.325022,0.00024214,2]
[364343990,1749073855671,-1607.325022,0.00024214,2]
[364343992,1749073855681,-1607.325022,0.00024214,2]
[364343994,1749073855691,-1607.325022,0.00024214,2]
[364343996,1749073855700,-1607.325022,0.00024214,2]
[364343998,1749073855710,-1607.325022,0.00024214,2]
[364344000,1749073855719,-1607.325022,0.00024214,2]
[364344001,1749073855734,-1607.325022,0.00024214,2]
[364344004,1749073855744,-1607.325022,0.00024214,2]
[364344005,1749073855753,-1607.325022,0.00024214,2]
[364344008,1749073855764,-1607.325022,0.00024214,2]
[364344009,1749073855774,-1607.325022,0.00024214,2]
[364344011,1749073855783,-1607.325022,0.00024214,2]
[364344013,1749073855792,-1607.325022,0.00024214,2]
[364344015,1749073855802,-1607.325022,0.00024214,2]
[364344017,1749073855812,-1607.32503,0.00024214,2]
[364344019,1749073855822,-35425.04352864,0.00024214,2]
[364344021,1749073855832,-978.18422492,0.00024214,3]
[364344023,1749073855842,-169626.84759121,0.00024215,20]
[364344037,1749073855976,-10481.0,0.00024215,20]
[364344048,1749073856072,-430.0,0.00017997,2]
[364344050,1749073856082,-342.79413623,0.00017997,2]
[364344052,1749073856094,-87.20586377,0.00017997,2]
[364344054,1749073856104,-406.07669776,0.00017998,2]
[364344056,1749073856116,-33.92330224,0.00017998,2]
[364344058,1749073856125,-349.18869776,0.00017999,2]
[364344061,1749073856146,-430.0,0.00017997,2]
[364344063,1749073856158,-80.81130224,0.00017999,2]
[364344065,1749073856167,-461.3,0.00018545,2]
[364344067,1749073856176,-170.64762745,0.00019964,2]
[364344069,1749073856186,-26882.08039147,0.00024215,20]
[364344071,1749073856197,-420.0,0.00024215,20]
[364344074,1749073856209,-1609.42739068,0.00024215,20]
[364344076,1749073856220,-1264.75967926,0.00024215,20]
[364344078,1749073856231,-28659.82432149,0.00024215,20]
[364344080,1749073856242,-1882.11901457,0.00024215,20]
[364344090,1749073856327,-1201.61999995,0.00024215,20]
[364344092,1749073856343,-4134.84466758,0.00024215,20]
[364344094,1749073856355,-8841.61586305,0.00024215,20]
[364344096,1749073856366,-499.99913388,0.00024215,20]
[364344099,1749073856379,-21238.2490077,0.00024215,20]
[364344101,1749073856391,-460.64002672,0.00024215,20]
[364344103,1749073856403,-23409.9190438,0.00024215,20]
[364344105,1749073856415,-6275.75446281,0.00024215,20]
[364345246,1749074624834,281.903198,0.00013699,2]
[364345331,1749075037657,-3494.2990506,0.00017134,2]
[364345333,1749075038170,-30.17172371,0.00017897,2]
[364345334,1749075038183,-140.47590374,0.00017897,2]
[364345335,1749075038192,-132.06711756,0.00017995,2]
[364345460,1749075051403,716.0,0.00025,120]
[364345471,1749075846997,500.0,0.00025,120]
[364345472,1749075868902,500.0,0.00025,120]
[364345476,1749075900902,300.634142,0.00013699,2]
[364345510,1749076050179,300.0,0.00025,120]
[364345584,1749076231958,-1634.8183757,0.0001689,2]
[364345586,1749076231969,-2646.6090085,0.00016996,2]
[364345588,1749076231979,-1200.0,0.00017887,2]
[364345590,1749076231989,-13609.3391134,0.00017888,3]
[364345592,1749076231999,-300.0,0.00017888,2]
[364345594,1749076232008,-300.0,0.00017888,2]
[364345596,1749076232017,-300.0,0.00017888,2]
[364345598,1749076232028,-283.0,0.00017888,2]
[364345600,1749076232038,-440.0,0.00017889,2]
[364345602,1749076232049,-440.0,0.00017889,2]
[364345604,1749076232059,-440.0,0.00017889,2]
[364345606,1749076232068,-404.74802783,0.00017889,2]
[364345608,1749076232079,-440.0,0.00017889,2]
[364345610,1749076232088,-490.0,0.00017889,2]
[364345612,1749076232097,-440.0,0.00017889,2]
[364345614,1749076232107,-626.75,0.00017889,2]
[364345616,1749076232116,-430.0,0.00017889,2]
[364345618,1749076232126,-440.0,0.00017889,2]
[364345621,1749076232136,-440.0,0.00017889,2]
[364345624,1749076232148,-550.9032418,0.00017889,2]
[364345627,1749076232166,-430.0,0.00017889,2]
[364345630,1749076232177,-35425.04352864,0.0001789,2]
[364345633,1749076232186,-300.0,0.0001789,2]
[364345636,1749076232195,-11743.80988626,0.00017891,2]
[364345639,1749076232205,-430.0,0.00017892,2]
[364345642,1749076232215,-440.0,0.00017892,2]
[364345645,1749076232224,-458.16,0.00017892,2]
[364345648,1749076232233,-797.89,0.00017892,2]
[364345651,1749076232242,-404.96000628,0.00017892,2]
[364345654,1749076232252,-440.0,0.00017892,2]
[364345657,1749076232261,-430.0,0.00017892,2]
[364345660,1749076232271,-440.0,0.00017892,2]
[364345663,1749076232280,-440.0,0.00017892,2]
[364345666,1749076232289,-517.97,0.00017892,2]
[364345669,1749076232301,-440.0,0.00017892,2]
[364345672,1749076232310,-430.0,0.00017892,2]
[364345675,1749076232319,-430.0,0.00017892,2]
[364345677,1749076232328,-535.76589772,0.00017892,2]
[364345679,1749076232338,-440.0,0.00017892,2]
[364345681,1749076232347,-440.0,0.00017892,2]
[364345683,1749076232356,-440.0,0.00017892,2]
[364345685,1749076232366,-643.23,0.00017892,2]
[364345687,1749076232375,-440.0,0.00017892,2]
[364345689,1749076232384,-430.0,0.00017893,2]
[364345691,1749076232394,-440.0,0.00017893,2]
[364345693,1749076232403,-985.04,0.00017893,2]
[364345695,1749076232414,-430.0,0.00017893,2]
[364345697,1749076232424,-440.0,0.00017893,2]
[364345699,1749076232433,-430.0,0.00017893,2]
[364345701,1749076232442,-440.0,0.00017893,2]
[364345703,1749076232452,-430.0,0.00017893,2]
[364345705,1749076232461,-310.97566826,0.00017893,2]
[364345707,1749076232470,-430.0,0.00017894,2]
[364345709,1749076232480,-500.0,0.00017894,2]
[364345711,1749076232491,-430.0,0.00017894,2]
[364345713,1749076232504,-440.0,0.00017895,2]
[364345714,1749076232514,-407.76320901,0.00017895,2]
[364345715,1749076232523,-430.0,0.00017895,2]
[364345716,1749076232534,-430.0,0.00017895,2]
[364345717,1749076232543,-430.0,0.00017895,2]
[364345718,1749076232554,-430.0,0.00017895,2]
[364345719,1749076232563,-430.0,0.00017895,2]
[364345720,1749076232572,-490.0,0.00017895,2]
[364345721,1749076232582,-430.0,0.00017895,2]
[364345722,1749076232592,-430.0,0.00017895,2]
[364345723,1749076232602,-440.0,0.00017895,2]
[364345724,1749076232611,-430.0,0.00017895,2]
[364345725,1749076232621,-440.0,0.00017895,2]
[364345726,1749076232630,-430.0,0.00017895,2]
[364345727,1749076232640,-500.0,0.00017895,2]
[364345728,1749076232650,-430.0,0.00017895,2]
[364345729,1749076232659,-430.0,0.00017895,2]
[364345730,1749076232669,-430.0,0.00017895,2]
[364345731,1749076232679,-500.0,0.00017895,2]
[364345732,1749076232689,-500.0,0.00017895,2]
[364345733,1749076232698,-430.0,0.00017895,2]
[364345734,1749076232708,-430.0,0.00017895,2]
[364345735,1749076232717,-430.0,0.00017895,2]
[364345736,1749076232727,-430.0,0.00017895,2]
[364345737,1749076232737,-430.0,0.00017895,2]
[364345738,1749076232747,-430.0,0.00017895,2]
[364345739,1749076232757,-430.0,0.00017895,2]
[364345740,1749076232767,-430.0,0.00017895,2]
[364345741,1749076232776,-490.0,0.00017895,2]
[364345742,1749076232787,-430.0,0.00017895,2]
[364345743,1749076232798,-430.0,0.00017895,2]
[364345744,1749076232808,-430.0,0.00017895,2]
[364345745,1749076232818,-456.21,0.00017895,2]
[364345746,1749076232829,-430.0,0.00017895,2]
[364345747,1749076232839,-500.0,0.00017895,2]
[364345748,1749076232849,-440.0,0.00017895,2]
[364345749,1749076232860,-440.0,0.00017895,2]
[364345750,1749076232870,-430.0,0.00017895,2]
[364345751,1749076232879,-456.11,0.00017895,2]
[364345752,1749076232890,-430.0,0.00017895,2]
[364345753,1749076232904,-430.0,0.00017895,2]
[364345754,1749076232914,-430.0,0.00017895,2]
[364345755,1749076232923,-430.0,0.00017895,2]
[364345756,1749076232933,-430.0,0.00017895,2]
[364345757,1749076232943,-440.0,0.00017895,2]
[364345758,1749076232952,-430.0,0.00017895,2]
[364345759,1749076232962,-440.0,0.00017895,2]
[364345760,1749076232972,-440.0,0.00017895,2]
[364345761,1749076232981,-440.0,0.00017895,2]
[364345762,1749076232991,-430.0,0.00017895,2]
[364345763,1749076233001,-430.0,0.00017895,2]
[364345764,1749076233011,-430.0,0.00017895,2]
[364345765,1749076233021,-430.0,0.00017895,2]
[364345766,1749076233032,-430.0,0.00017895,2]
[364345767,1749076233042,-430.0,0.00017895,2]
[364345768,1749076233052,-440.0,0.00017895,2]
[364345769,1749076233063,-430.0,0.00017895,2]
[364345770,1749076233072,-430.0,0.00017895,2]
[364345771,1749076233082,-200.0,0.00017895,2]
[364345772,1749076233091,-440.0,0.00017895,2]
[364345773,1749076233101,-431.09031211,0.00017895,2]
[364345774,1749076233110,-430.0,0.00017895,2]
[364345775,1749076233120,-440.0,0.00017895,2]
[364345776,1749076233129,-430.0,0.00017895,2]
[364345777,1749076233140,-440.0,0.00017895,2]
[364345779,1749076233149,-430.0,0.00017895,2]
[364345781,1749076233160,-430.0,0.00017895,2]
[364345783,1749076233170,-440.0,0.00017895,2]
[364345785,1749076233181,-440.0,0.00017895,2]
[364345786,1749076233191,-440.0,0.00017895,2]
[364345788,1749076233200,-430.0,0.00017895,2]
[364345790,1749076233210,-450.0,0.00017895,2]
[364345792,1749076233220,-278.71012717,0.00017896,2]
[364345794,1749076233231,-500.0,0.00017897,2]
[364345796,1749076233242,-430.0,0.00017897,2]
[364345798,1749076233252,-863.56,0.00017897,2]
[364345800,1749076233262,-440.0,0.00017897,2]
[364345802,1749076233272,-440.0,0.00017897,2]
[364345803,1749076233283,-430.0,0.00017897,2]
[364345804,1749076233292,-440.0,0.00017897,2]
[364345805,1749076233302,-468.0,0.00017897,2]
[364345806,1749076233312,-440.0,0.00017897,2]
[364345807,1749076233322,-1459.99587792,0.000179,2]
[364345808,1749076233342,-500.0,0.00017973,2]
[364345809,1749076233352,-1091.58,0.00017986,3]
[364345811,1749076233362,-545.79,0.00017986,3]
[364345813,1749076233373,-272.89,0.00017986,3]
[364345814,1749076233383,-818.72,0.00017987,3]
[364345815,1749076233393,-500.0,0.00017994,2]
[364345816,1749076233403,-430.0,0.00017995,2]
[364345817,1749076233413,-400.0,0.00017995,2]
[364345818,1749076233422,-430.0,0.00017995,2]
[364345819,1749076233432,-420.0,0.00017995,2]
[364345821,1749076233442,-450.0,0.00017995,2]
[364345822,1749076233452,-574.440394,0.00017995,2]
[364345823,1749076233462,-460.0,0.00017995,2]
[364345824,1749076233472,-430.0,0.00017995,2]
[364345825,1749076233483,-430.0,0.00017995,2]
[364345826,1749076233495,-430.0,0.00017995,2]
[364345827,1749076233505,-420.0,0.00017995,2]
[364345828,1749076233515,-360.0,0.00017995,2]
[364345829,1749076233526,-306.5559065,0.00017995,2]
[364345830,1749076233536,-430.0,0.00017995,2]
[364345831,1749076233547,-440.0,0.00017995,2]
[364345832,1749076233556,-430.0,0.00017995,2]
[364345833,1749076233567,-440.0,0.00017995,2]
[364345834,1749076233577,-420.0,0.00017995,2]
[364345835,1749076233588,-440.0,0.00017995,2]
[364345836,1749076233800,-482.96218221,0.00017995,2]
[364345837,1749076233812,-420.0,0.00017995,2]
[364345838,1749076233822,-420.0,0.00017995,2]
[364345839,1749076233833,-420.0,0.00017995,2]
[364345840,1749076233843,-420.0,0.00017995,2]
[364345841,1749076233853,-420.0,0.00017995,2]
[364345842,1749076233863,-420.0,0.00017995,2]
[364345843,1749076233874,-430.0,0.00017995,2]
[364345844,1749076233884,-420.0,0.00017995,2]
[364345845,1749076233894,-560.0,0.00017995,2]
[364345846,1749076233904,-420.0,0.00017995,2]
[364345847,1749076233914,-440.0,0.00017995,2]
[364345848,1749076233924,-420.0,0.00017995,2]
[364345849,1749076233934,-430.0,0.00017995,2]
[364345850,1749076233943,-430.0,0.00017995,2]
[364345851,1749076233954,-440.0,0.00017995,2]
[364345852,1749076233963,-580.7,0.00017995,2]
[364345853,1749076233973,-269.76560823,0.00017995,2]
[364345854,1749076233984,-237.75251869,0.00017995,2]
[364345855,1749076233994,-248.64760731,0.00017995,2]
[364345856,1749076234005,-430.0,0.00017995,2]
[364345857,1749076234015,-440.0,0.00017995,2]
[364345858,1749076234025,-430.0,0.00017995,2]
[364345859,1749076234034,-420.0,0.00017995,2]
[364345860,1749076234043,-350.21144787,0.00017995,2]
[364345861,1749076234055,-440.0,0.00017995,2]
[364345862,1749076234064,-420.0,0.00017995,2]
[364345863,1749076234074,-447.11844727,0.00017995,2]
[364345864,1749076234084,-440.0,0.00017995,2]
[364345865,1749076234093,-291.64743689,0.00017995,2]
[364345866,1749076234103,-490.613989,0.00017995,2]
[364345867,1749076234113,-477.21132094,0.00017995,2]
[364345868,1749076234123,-500.0,0.00017995,2]
[364345869,1749076234132,-430.0,0.00017995,2]
[364345870,1749076234143,-430.0,0.00017995,2]
[364345871,1749076234156,-500.0,0.00017995,2]
[364345872,1749076234166,-500.0,0.00017995,2]
[364345873,1749076234175,-500.0,0.00017995,2]
[364345874,1749076234184,-500.0,0.00017995,2]
[364345875,1749076234194,-500.0,0.00017995,2]
[364345876,1749076234204,-400.92467331,0.00017995,2]
[364345877,1749076234214,-430.0,0.00017995,2]
[364345878,1749076234223,-430.0,0.00017995,2]
[364345879,1749076234233,-430.0,0.00017995,2]
[364345880,1749076234242,-431.60979836,0.00017995,2]
[364345881,1749076234252,-175.37416722,0.00017995,2]
[364345882,1749076234262,-430.0,0.00017995,2]
[364345883,1749076234272,-430.0,0.00017995,2]
[364345884,1749076234281,-430.0,0.00017995,2]
[364345885,1749076234291,-430.0,0.00017995,2]
[364345886,1749076234303,-400.0,0.00017995,2]
[364345887,1749076234313,-370.0,0.00017995,2]
[364345888,1749076234323,-430.0,0.00017995,2]
[364345889,1749076234333,-430.0,0.00017995,2]
[364345890,1749076234343,-430.0,0.00017995,2]
[364345891,1749076234353,-171.8570698,0.00017995,2]
[364345892,1749076234369,-258.1429302,0.00017995,2]
[364345893,1749076234379,-430.0,0.00017995,2]
[364345894,1749076234389,-440.0,0.00017995,2]
[364345895,1749076234399,-430.0,0.00017995,2]
[364345896,1749076234408,-430.0,0.00017995,2]
[364345897,1749076234418,-430.0,0.00017995,2]
[364345898,1749076234428,-440.0,0.00017995,2]
[364345899,1749076234437,-430.0,0.00017995,2]
[364345900,1749076234448,-430.0,0.00017995,2]
[364345901,1749076234457,-430.0,0.00017995,2]
[364345902,1749076234467,-440.0,0.00017995,2]
[364345903,1749076234477,-440.0,0.00017995,2]
[364345904,1749076234491,-390.0,0.00017995,2]
[364345905,1749076234501,-440.0,0.00017995,2]
[364345906,1749076234511,-430.0,0.00017995,2]
[364345907,1749076234521,-430.0,0.00017995,2]
[364345908,1749076234531,-440.0,0.00017995,2]
[364345909,1749076234541,-300.0,0.00017995,2]
[364345910,1749076234552,-490.0,0.00017995,2]
[364345911,1749076234562,-540.0,0.00017995,2]
[364345912,1749076234576,-490.0,0.00017995,2]
[364345913,1749076234585,-490.0,0.00017995,2]
[364345914,1749076234595,-490.0,0.00017995,2]
[364345915,1749076234604,-440.0,0.00017995,2]
[364345916,1749076234614,-490.0,0.00017995,2]
[364345917,1749076234623,-490.0,0.00017995,2]
[364345918,1749076234633,-440.0,0.00017995,2]
[364345919,1749076234642,-440.0,0.00017995,2]
[364345920,1749076234653,-490.0,0.00017995,2]
[364345921,1749076234663,-440.0,0.00017995,2]
[364345922,1749076234673,-440.0,0.00017995,2]
[364345923,1749076234683,-206.07,0.00017995,2]
[364345924,1749076234692,-440.0,0.00017995,2]
[364345925,1749076234702,-440.0,0.00017995,2]
[364345926,1749076234712,-430.0,0.00017995,2]
[364345927,1749076234721,-430.0,0.00017995,2]
[364345928,1749076234731,-430.0,0.00017995,2]
[364345929,1749076234741,-400.0,0.00017995,2]
[364345930,1749076234750,-391.40508588,0.00017995,2]
[364345931,1749076234760,-366.16807931,0.00017995,2]
[364345932,1749076234770,-324.80810926,0.00017995,2]
[364345933,1749076234779,-504.51640924,0.00017995,2]
[364345934,1749076234789,-440.0,0.00017995,2]
[364345935,1749076234799,-396.67448792,0.00017995,2]
[364345936,1749076234809,-440.0,0.00017995,2]
[364345937,1749076234818,-423.64732987,0.00017995,2]
[364345938,1749076234828,-430.0,0.00017995,2]
[364345939,1749076234838,-400.0,0.00017995,2]
[364345940,1749076234847,-430.0,0.00017995,2]
[364345941,1749076234857,-430.0,0.00017995,2]
[364345942,1749076234867,-430.0,0.00017995,2]
[364345943,1749076234877,-440.0,0.00017995,2]
[364345944,1749076234887,-528.26599084,0.00017995,2]
[364345945,1749076234899,-523.66,0.00017995,2]
[364345946,1749076234908,-430.0,0.00017995,2]
[364345947,1749076234919,-430.0,0.00017995,2]
[364345948,1749076234928,-430.0,0.00017995,2]
[364345949,1749076234938,-440.0,0.00017995,2]
[364345950,1749076234947,-430.0,0.00017995,2]
[364345951,1749076234957,-490.0,0.00017995,2]
[364345952,1749076234966,-244.5649086,0.00017995,2]
[364345953,1749076234976,-430.0,0.00017996,2]
[364345954,1749076234985,-400.0,0.00017996,2]
[364345955,1749076234995,-452.91587572,0.00017996,2]
[364345956,1749076235005,-440.0,0.00017996,2]
[364345957,1749076235015,-440.0,0.00017996,2]
[364345958,1749076235024,-440.0,0.00017996,2]
[364345959,1749076235034,-485.41,0.00017996,2]
[364345960,1749076235043,-440.0,0.00017996,2]
[364345961,1749076235054,-440.0,0.00017996,2]
[364345962,1749076235066,-440.0,0.00017996,2]
[364345963,1749076235077,-440.0,0.00017996,2]
[364345964,1749076235087,-440.0,0.00017996,2]
[364345965,1749076235096,-430.0,0.00017996,2]
[364345966,1749076235105,-440.0,0.00017996,2]
[364345967,1749076235115,-430.0,0.00017996,2]
[364345968,1749076235124,-430.0,0.00017996,2]
[364345969,1749076235133,-420.0,0.00017996,2]
[364345970,1749076235143,-420.0,0.00017996,2]
[364345971,1749076235153,-430.0,0.00017996,2]
[364345972,1749076235163,-440.0,0.00017996,2]
[364345973,1749076235173,-509.35692007,0.00017996,2]
[364345974,1749076235182,-430.0,0.00017996,2]
[364345975,1749076235193,-420.0,0.00017996,2]
[364345976,1749076235202,-440.0,0.00017996,2]
[364345977,1749076235213,-440.0,0.00017996,2]
[364345978,1749076235223,-380.0,0.00017996,2]
[364345979,1749076235232,-440.0,0.00017996,2]
[364345980,1749076235243,-440.0,0.00017996,2]
[364345981,1749076235254,-400.96118683,0.00017996,2]
[364345982,1749076235265,-440.0,0.00017996,2]
[364345983,1749076235275,-500.0,0.00017996,2]
[364345984,1749076235285,-500.0,0.00017996,2]
[364345985,1749076235294,-589.5561649,0.00017996,2]
[364345986,1749076235305,-160.0,0.00017996,2]
[364345987,1749076235315,-440.0,0.00017996,2]